Workbook

Sheet Introduksjon
C1: Introduksjon og veiledning - Kontraktsregister
B3: Formålet med verktøyet
B4: Virksomheten bør ha kontroll på sine kontrakter for å kunne ha oversikt over forpliktelser og muligheter. Kontraktsregistret understøtter en god struktur og samler nøkkelinformasjon om virksomhetens kontrakter - på et sted.
B6: Kontraktssyklus gir oversikt over omsetning og antall kontrakter over en fireårs periode. Primært skal det støtte planlegging ifm fremtidige anskaffelsesprosesser. Hovedbruker vil derfor være innkjøpsansvarlig/innkjøpsavdelingen for virksomheten.
B8: Veiledning - Generelt: Felter i gult er for utfylling. Plasser musepekeren over celler med rødt hjørne for å se kommentarer med utdypende informasjon.
B10: Veiledning Kontraktsregister Når en ny kontrakt er inngått bør den registreres i kontraktsregisteret. Første steg er å fylle inn grunnleggende informasjon om kontrakten, vare- /tjenestegruppe, samt estimat av omsetning i Kolonne B-H. Denne dataen kan hentes fra en innkjøpsanalyse eller fra regnskap.
B11: De etterfølgende kolonne er gruppert i fem områder som skal oppsummere detaljer kring kontrakten. Det gårå skjule eller vise kolonner ved å benytte +-tegn Noen av nøkkeldataene fra kontraktsregisteret blir benyttet som kildedata for årshjulet. Disse cellene er markert med en klarere gul farge.
B12: Veiledning Kontraktsyklus: 'Velg fra rullgardinmeny første år i kontraktssyklus f.eks. 2014. Klikk deretter på knappen "Oppdatert med data fra kontraktsregisteret". For at kontraktssyklus skal gi verdi for bruker må "Underkategori navn", "Totalverdi", "Status (=verdi "Aktiv") og "Sannsynlig dato for anskaffelsesprosess" i kontraktsregisteret være utfylt riktig.
B13: Det må alltid være en utløpsdato (Kolonne T i Kontraktsregsister) skal årshjulet fungere. 'Kontrakter med status satt til "Terminert" vil ikke bli inkludert i kontraktsyklusen
B14: Formålet med kontraktssyklus er at virksomheten skal se, og kunne planlegge, når en ny anskaffelsesprosess skal startes. Det er derfor viktig å vurdere eksisterende kontrakter i god tid og ta hensyn til eventuelle opsjoner. Hvis virksomheten ikke er fornøyd med en kontrakt/leverandør bør dette noteres så at opsjoner ikke forlenges automatisk uten reforhandling eller ny konkurranseutsettelse.

Sheet Kontraktsregister
F1: Kontraktsregister
E3: Ansvarlig for kontraktsregister | F3: "Fyll inn navn" | G3: % under kontrakt og i dette register:
E4: Estimert årlig totalverdi for virksomhetens anskaffelser (100%) | F4: "Fyll inn verdi"
E5: Estimert årlig totalverdi for kontrakter i dette register | F5: "Fyll inn verdi" | G5: =IFERROR(F5/F4,"") -> 
B6: Veiledning | E6: Dagens dato | F6: =TODAY() -> 2023-04-24
I7: Kontrakts-periode | O7: Kontrakts-administrasjon | U7: Leverandør- detaljer | Z7: Kontrakts-forvalter | AD7: Annet
A8: X | B8: # | C8: Kontraktsnr. eller saksnummer | D8: Innkjøpskategori | E8: Underkategori | F8: Navn på kontrakten | G8: Verdi (estimert, årlig i millioner) | H8: Totalverdi (estimert, hele kontrakssyklus) | I8: X | J8: Kontrakt startdato | K8: År - start | L8: Kontrakt utløpsdato | M8: År - slutt | N8: Kontrakts lengde (ca måneder) | O8: X | P8: Status | Q8: Type avtale | R8: Utløpsdato for opsjoner | S8: Oppsigelsestid (ant. måneder) | T8: Sannsynlig år (ÅÅÅÅ) ankaffelsesprosess neste gang | U8: X | V8: Leverandør navn | W8: Leverandør kontaktperson | X8: Leverandør telefon | Y8: Leverandør epost | Z8: X | AA8: Hvilken avdeling forvalter kontrakten? | AB8: Kontaktperson hos oss | AC8: Kontaktpersons epost | AD8: X | AE8: Hvor er orginalkontrakt lagret? | AF8: URL til kontrakt | AG8: Finnes det en egen kontrakts-oppsummering? | AH8: Ansvarlig anskaffelses-prosessen | AI8: Ansvarlig neste anskaffelses-prosess | AJ8: Kommentarer til saker som vil påvirke forlengelse etc. | AK8: SLUTT
B9: Eksempel | D9: Eiendom | E9: Renhold 2 | G9: 40 | H9: =G9*N9/12 -> 80 | J9: 2011-12-30 | K9: =YEAR(J9) -> 2011 | L9: 2013-12-29 | M9: =YEAR(L9) -> 2013 | N9: =(L9-J9)*12/365 -> 24 | P9: Aktiv | R9: 2015-12-30 | T9: =M9 -> 2013
B10: =B7+1 -> 1 | H10: =G10*N10/12 -> 0 | J10: 2011-12-31 | K10: 2011 | L10: 2013-12-30 | M10: 2013 | N10: =(L10-J10)*12/365 -> 24 | P10: Aktiv | R10: 2015-12-31 | T10: 2013
B11: 1 | D11: Eiendomsdrift | E11: Facility management | G11: 32 | H11: 64 | J11: 2012-01-01 | K11: 2012 | L11: 2013-12-31 | M11: 2013 | N11: 24 | P11: Aktiv | T11: =M11 -> 2013
B12: 2 | D12: Eiendomsdrift | E12: Kantine | G12: 6 | H12: 11.98356164 | J12: 2014-01-01 | K12: 2014 | L12: 2015-12-31 | M12: 2015 | N12: 23.96712329 | P12: Aktiv | T12: =M12 -> 2015
B13: 3 | D13: Eiendomsdrift | E13: Kontorinventar | G13: 13 | H13: 12.32328767 | J13: 2014-01-22 | K13: 2014 | L13: 2015-01-03 | M13: 2015 | N13: 11.37534247 | P13: Aktiv | T13: =M13 -> 2015
B14: 4 | D14: Eiendomsdrift | E14: Renhold | G14: 10 | H14: 19.47945205 | J14: 2014-01-22 | K14: 2014 | L14: 2016-01-03 | M14: 2016 | N14: 23.37534247 | P14: Aktiv | T14: 2016
B15: 5 | D15: IKT | E15: Software inkl. vedlikehold | G15: 32 | H15: 94.42191781 | J15: 2014-01-22 | K15: 2014 | L15: 2017-01-03 | M15: 2017 | N15: 35.40821918 | P15: Aktiv | T15: 2017
B16: 6 | D16: IKT | E16: Hardware | G16: 10 | H16: 9.479452055 | J16: 2014-01-22 | K16: 2014 | L16: 2015-01-03 | M16: 2015 | N16: 11.37534247 | P16: Aktiv | T16: 2015
B17: 7 | D17: Personell | E17: Hotellarrangementer | G17: 81 | H17: 76.78356164 | J17: 2014-01-22 | K17: 2014 | L17: 2015-01-03 | M17: 2015 | N17: 11.37534247 | P17: Aktiv | T17: 2015
B18: 8 | D18: Personell | E18: Møter, mat og underholdning | G18: 5 | H18: 4.739726027 | J18: 2014-01-22 | K18: 2014 | L18: 2015-01-03 | M18: 2015 | N18: 11.37534247 | P18: Terminert | T18: 2015
B19: 9 | D19: Personell | E19: Reise | G19: 34 | H19: 32.23013699 | J19: 2014-01-22 | K19: 2014 | L19: 2015-01-03 | M19: 2015 | N19: 11.37534247 | P19: Aktiv | T19: 2015
B20: 10 | D20: Kontor og admin. | E20: Trykksaker | G20: 4 | H20: 3.791780822 | J20: 2014-01-22 | K20: 2014 | L20: 2015-01-03 | M20: 2015 | N20: 11.37534247 | P20: Aktiv | T20: 2015
B21: 11 | D21: Kontor og admin. | E21: Kontormateriale | G21: 33 | H21: 31.28219178 | J21: 2014-01-22 | K21: 2014 | L21: 2015-01-03 | M21: 2015 | N21: 11.37534247 | P21: Aktiv | T21: 2015
B22: 12 | D22: Rådgivning | E22: IKT konsulenter | G22: 34 | H22: 100.3232877 | J22: 2015-01-22 | K22: 2015 | L22: 2018-01-03 | M22: 2018 | N22: 35.40821918 | P22: Aktiv | T22: 2018
B23: 13 | D23: Rådgivning | E23: Ledelsesrådgivning | G23: 6 | H23: 11.70410959 | J23: 2012-01-22 | K23: 2012 | L23: 2014-01-03 | M23: 2014 | N23: 23.40821918 | P23: Aktiv | T23: 2014
B24: 14 | D24: Bemanning | E24: Vikartjenester | G24: 32 | H24: 30.42191781 | J24: 2012-01-22 | K24: 2012 | L24: 2013-01-03 | M24: 2013 | N24: 11.40821918 | P24: Aktiv | T24: 2013
B25: 15 | D25: Bemanning | E25: Rekruttering | G25: 2 | H25: 5.901369863 | J25: 2015-01-22 | K25: 2015 | L25: 2018-01-03 | M25: 2018 | N25: 35.40821918 | P25: Aktiv | T25: 2018
B26: 16 | H26: 0 | J26: 2016-02-14 | K26: 2016 | L26: 2018-02-14 | M26: 2018 | N26: 24.03287671 | P26: Aktiv | T26: 2018
B27: 17 | H27: 0 | J27: 2016-02-14 | K27: 2016 | L27: 2019-02-14 | M27: 2019 | N27: 36.03287671 | P27: Aktiv | T27: 2019
K28: 1900 | M28: 1900 | N28: 0 | P28: Aktiv | T28: 1900
K29: 1900 | M29: 1900 | N29: 0 | P29: Aktiv | T29: 1900
K30: 1900 | M30: 1900 | N30: 0 | P30: Aktiv | T30: 1900
K31: 1900 | M31: 1900 | N31: 0 | P31: Aktiv | T31: 1900
K32: 1900 | M32: 1900 | N32: 0 | P32: Aktiv | T32: 1900
K33: 1900 | M33: 1900 | N33: 0 | P33: Aktiv | T33: 1900
K34: 1900 | M34: 1900 | N34: 0 | P34: Aktiv | T34: 1900
K35: 1900 | M35: 1900 | N35: 0 | P35: Aktiv | T35: 1900
K36: 1900 | M36: 1900 | N36: 0 | P36: Aktiv | T36: 1900
K37: 1900 | M37: 1900 | N37: 0 | P37: Aktiv | T37: 1900
K38: 1900 | M38: 1900 | N38: 0 | P38: Aktiv | T38: 1900
K39: 1900 | M39: 1900 | N39: 0 | P39: Aktiv | T39: 1900
K40: 1900 | M40: 1900 | N40: 0 | P40: Aktiv | T40: 1900
K41: 1900 | M41: 1900 | N41: 0 | P41: Aktiv | T41: 1900
K42: 1900 | M42: 1900 | N42: 0 | P42: Aktiv | T42: 1900
K43: 1900 | M43: 1900 | N43: 0 | P43: Aktiv | T43: 1900
K44: 1900 | M44: 1900 | N44: 0 | P44: Aktiv | T44: 1900
K45: 1900 | M45: 1900 | N45: 0 | P45: Aktiv | T45: 1900
K46: 1900 | M46: 1900 | N46: 0 | P46: Aktiv | T46: 1900
K47: 1900 | M47: 1900 | N47: 0 | P47: Aktiv | T47: 1900
K48: 1900 | M48: 1900 | N48: 0 | P48: Aktiv | T48: 1900
K49: 1900 | M49: 1900 | N49: 0 | P49: Aktiv | T49: 1900
K50: 1900 | M50: 1900 | N50: 0 | P50: Aktiv | T50: 1900
K51: 1900 | M51: 1900 | N51: 0 | P51: Aktiv | T51: 1900
K52: 1900 | M52: 1900 | N52: 0 | P52: Aktiv | T52: 1900
K53: 1900 | M53: 1900 | N53: 0 | P53: Aktiv | T53: 1900
K54: 1900 | M54: 1900 | N54: 0 | P54: Aktiv | T54: 1900
K55: 1900 | M55: 1900 | N55: 0 | P55: Aktiv | T55: 1900
K56: 1900 | M56: 1900 | N56: 0 | P56: Aktiv | T56: 1900
K57: 1900 | M57: 1900 | N57: 0 | P57: Aktiv | T57: 1900
K58: 1900 | M58: 1900 | N58: 0 | P58: Aktiv | T58: 1900
K59: 1900 | M59: 1900 | N59: 0 | P59: Aktiv | T59: 1900
K60: 1900 | M60: 1900 | N60: 0 | P60: Aktiv | T60: 1900
K61: 1900 | M61: 1900 | N61: 0 | P61: Aktiv | T61: 1900
K62: 1900 | M62: 1900 | N62: 0 | P62: Aktiv | T62: 1900
K63: 1900 | M63: 1900 | N63: 0 | P63: Aktiv | T63: 1900
K64: 1900 | M64: 1900 | N64: 0 | P64: Aktiv | T64: 1900
K65: 1900 | M65: 1900 | N65: 0 | P65: Aktiv | T65: 1900
K66: 1900 | M66: 1900 | N66: 0 | P66: Aktiv | T66: 1900
K67: 1900 | M67: 1900 | N67: 0 | P67: Aktiv | T67: 1900
K68: 1900 | M68: 1900 | N68: 0 | P68: Aktiv | T68: 1900
K69: 1900 | M69: 1900 | N69: 0 | P69: Aktiv | T69: 1900
K70: 1900 | M70: 1900 | N70: 0 | P70: Aktiv | T70: 1900
K71: 1900 | M71: 1900 | N71: 0 | P71: Aktiv | T71: 1900
K72: 1900 | M72: 1900 | N72: 0 | P72: Aktiv | T72: 1900
K73: =YEAR(J73) -> 1900 | M73: =YEAR(L73) -> 1900 | N73: 0 | P73: Aktiv | T73: 1900
K74: 1900 | M74: 1900 | N74: =(L74-J74)*12/365 -> 0 | P74: Aktiv | T74: 1900

Sheet Kontraktsyklus
F1: Kontraktssyklus - hvilket år bør anskaffelsesprosess for de største kategorier gjennomføres?
I2: Steg 1: Velg første år i kontraktssyklus Steg 2: Trykk deretter oppdateringsknapp
D3: Veiledning | I3: 2014
C5: =CONCATENATE("Kontrakt utløper ",D5) -> Kontrakt utløper 2017 | D5: =$I$3+3 -> 2017 | J5: =CONCATENATE("Kontrakt utløper ",K5) -> Kontrakt utløper 2014 | K5: =I3 -> 2014
C6: Største underkategorier | D6: Verdi | J6: Største underkategorier | K6: Verdi
C7: =IF(INDEX(Backend_database_med_pivot!$J$12:$K$33,ROW(C7)-ROW(C$6),1)=0,"",INDEX(Backend_database_med_pivot!$J$12:$K$33,ROW(C7)-ROW(C$6),1)) -> Software inkl. vedlikehold | D7: =IF(C7="","",VLOOKUP(C7,Backend_database_med_pivot!$J$12:$K$42,2,FALSE)) -> 94.42191781 | E7: =IFERROR(D7/D$22,"") -> 1 | J7: =IF(INDEX(Backend_database_med_pivot!$A$12:$B$33,ROW(J7)-ROW(J$6),1)=0,"",INDEX(Backend_database_med_pivot!$A$12:$B$33,ROW(J7)-ROW(J$6),1)) -> Ledelsesrådgivning | K7: =IF(J7="","",VLOOKUP(J7,Backend_database_med_pivot!$A$12:$B$42,2,FALSE)) -> 11.70410959 | L7: =IFERROR(K7/K$22,"") -> 1
C8: =IF(INDEX(Backend_database_med_pivot!$J$12:$K$33,ROW(C8)-ROW(C$6),1)=0,"",INDEX(Backend_database_med_pivot!$J$12:$K$33,ROW(C8)-ROW(C$6),1)) ->  | D8: =IF(C8="","",VLOOKUP(C8,Backend_database_med_pivot!$J$12:$K$42,2,FALSE)) ->  | E8: =IFERROR(D8/D$22,"") ->  | J8: =IF(INDEX(Backend_database_med_pivot!$A$12:$B$33,ROW(J8)-ROW(J$6),1)=0,"",INDEX(Backend_database_med_pivot!$A$12:$B$33,ROW(J8)-ROW(J$6),1)) ->  | K8: =IF(J8="","",VLOOKUP(J8,Backend_database_med_pivot!$A$12:$B$42,2,FALSE)) ->  | L8: =IFERROR(K8/K$22,"") -> 
C9: =IF(INDEX(Backend_database_med_pivot!$J$12:$K$33,ROW(C9)-ROW(C$6),1)=0,"",INDEX(Backend_database_med_pivot!$J$12:$K$33,ROW(C9)-ROW(C$6),1)) ->  | D9: =IF(C9="","",VLOOKUP(C9,Backend_database_med_pivot!$J$12:$K$42,2,FALSE)) ->  | J9: =IF(INDEX(Backend_database_med_pivot!$A$12:$B$33,ROW(J9)-ROW(J$6),1)=0,"",INDEX(Backend_database_med_pivot!$A$12:$B$33,ROW(J9)-ROW(J$6),1)) ->  | K9: =IF(J9="","",VLOOKUP(J9,Backend_database_med_pivot!$A$12:$B$42,2,FALSE)) -> 
C10: =IF(INDEX(Backend_database_med_pivot!$J$12:$K$33,ROW(C10)-ROW(C$6),1)=0,"",INDEX(Backend_database_med_pivot!$J$12:$K$33,ROW(C10)-ROW(C$6),1)) ->  | D10: =IF(C10="","",VLOOKUP(C10,Backend_database_med_pivot!$J$12:$K$42,2,FALSE)) ->  | J10: =IF(INDEX(Backend_database_med_pivot!$A$12:$B$33,ROW(J10)-ROW(J$6),1)=0,"",INDEX(Backend_database_med_pivot!$A$12:$B$33,ROW(J10)-ROW(J$6),1)) ->  | K10: =IF(J10="","",VLOOKUP(J10,Backend_database_med_pivot!$A$12:$B$42,2,FALSE)) -> 
C11: =IF(INDEX(Backend_database_med_pivot!$J$12:$K$33,ROW(C11)-ROW(C$6),1)=0,"",INDEX(Backend_database_med_pivot!$J$12:$K$33,ROW(C11)-ROW(C$6),1)) ->  | D11: =IF(C11="","",VLOOKUP(C11,Backend_database_med_pivot!$J$12:$K$42,2,FALSE)) ->  | J11: =IF(INDEX(Backend_database_med_pivot!$A$12:$B$33,ROW(J11)-ROW(J$6),1)=0,"",INDEX(Backend_database_med_pivot!$A$12:$B$33,ROW(J11)-ROW(J$6),1)) ->  | K11: =IF(J11="","",VLOOKUP(J11,Backend_database_med_pivot!$A$12:$B$42,2,FALSE)) -> 
C12: =IF(INDEX(Backend_database_med_pivot!$J$12:$K$33,ROW(C12)-ROW(C$6),1)=0,"",INDEX(Backend_database_med_pivot!$J$12:$K$33,ROW(C12)-ROW(C$6),1)) ->  | D12: =IF(C12="","",VLOOKUP(C12,Backend_database_med_pivot!$J$12:$K$42,2,FALSE)) ->  | J12: =IF(INDEX(Backend_database_med_pivot!$A$12:$B$33,ROW(J12)-ROW(J$6),1)=0,"",INDEX(Backend_database_med_pivot!$A$12:$B$33,ROW(J12)-ROW(J$6),1)) ->  | K12: =IF(J12="","",VLOOKUP(J12,Backend_database_med_pivot!$A$12:$B$42,2,FALSE)) -> 
C13: =IF(INDEX(Backend_database_med_pivot!$J$12:$K$33,ROW(C13)-ROW(C$6),1)=0,"",INDEX(Backend_database_med_pivot!$J$12:$K$33,ROW(C13)-ROW(C$6),1)) ->  | D13: =IF(C13="","",VLOOKUP(C13,Backend_database_med_pivot!$J$12:$K$42,2,FALSE)) ->  | J13: =IF(INDEX(Backend_database_med_pivot!$A$12:$B$33,ROW(J13)-ROW(J$6),1)=0,"",INDEX(Backend_database_med_pivot!$A$12:$B$33,ROW(J13)-ROW(J$6),1)) ->  | K13: =IF(J13="","",VLOOKUP(J13,Backend_database_med_pivot!$A$12:$B$42,2,FALSE)) -> 
C14: =IF(INDEX(Backend_database_med_pivot!$J$12:$K$33,ROW(C14)-ROW(C$6),1)=0,"",INDEX(Backend_database_med_pivot!$J$12:$K$33,ROW(C14)-ROW(C$6),1)) ->  | D14: =IF(C14="","",VLOOKUP(C14,Backend_database_med_pivot!$J$12:$K$42,2,FALSE)) ->  | J14: =IF(INDEX(Backend_database_med_pivot!$A$12:$B$33,ROW(J14)-ROW(J$6),1)=0,"",INDEX(Backend_database_med_pivot!$A$12:$B$33,ROW(J14)-ROW(J$6),1)) ->  | K14: =IF(J14="","",VLOOKUP(J14,Backend_database_med_pivot!$A$12:$B$42,2,FALSE)) -> 
C15: =IF(INDEX(Backend_database_med_pivot!$J$12:$K$33,ROW(C15)-ROW(C$6),1)=0,"",INDEX(Backend_database_med_pivot!$J$12:$K$33,ROW(C15)-ROW(C$6),1)) ->  | D15: =IF(C15="","",VLOOKUP(C15,Backend_database_med_pivot!$J$12:$K$42,2,FALSE)) ->  | J15: =IF(INDEX(Backend_database_med_pivot!$A$12:$B$33,ROW(J15)-ROW(J$6),1)=0,"",INDEX(Backend_database_med_pivot!$A$12:$B$33,ROW(J15)-ROW(J$6),1)) ->  | K15: =IF(J15="","",VLOOKUP(J15,Backend_database_med_pivot!$A$12:$B$42,2,FALSE)) -> 
C16: =IF(INDEX(Backend_database_med_pivot!$J$12:$K$33,ROW(C16)-ROW(C$6),1)=0,"",INDEX(Backend_database_med_pivot!$J$12:$K$33,ROW(C16)-ROW(C$6),1)) ->  | D16: =IF(C16="","",VLOOKUP(C16,Backend_database_med_pivot!$J$12:$K$42,2,FALSE)) ->  | J16: =IF(INDEX(Backend_database_med_pivot!$A$12:$B$33,ROW(J16)-ROW(J$6),1)=0,"",INDEX(Backend_database_med_pivot!$A$12:$B$33,ROW(J16)-ROW(J$6),1)) ->  | K16: =IF(J16="","",VLOOKUP(J16,Backend_database_med_pivot!$A$12:$B$42,2,FALSE)) -> 
C17: =IF(INDEX(Backend_database_med_pivot!$J$12:$K$33,ROW(C17)-ROW(C$6),1)=0,"",INDEX(Backend_database_med_pivot!$J$12:$K$33,ROW(C17)-ROW(C$6),1)) ->  | D17: =IF(C17="","",VLOOKUP(C17,Backend_database_med_pivot!$J$12:$K$42,2,FALSE)) ->  | J17: =IF(INDEX(Backend_database_med_pivot!$A$12:$B$33,ROW(J17)-ROW(J$6),1)=0,"",INDEX(Backend_database_med_pivot!$A$12:$B$33,ROW(J17)-ROW(J$6),1)) ->  | K17: =IF(J17="","",VLOOKUP(J17,Backend_database_med_pivot!$A$12:$B$42,2,FALSE)) -> 
C18: =IF(INDEX(Backend_database_med_pivot!$J$12:$K$33,ROW(C18)-ROW(C$6),1)=0,"",INDEX(Backend_database_med_pivot!$J$12:$K$33,ROW(C18)-ROW(C$6),1)) ->  | D18: =IF(C18="","",VLOOKUP(C18,Backend_database_med_pivot!$J$12:$K$42,2,FALSE)) ->  | J18: =IF(INDEX(Backend_database_med_pivot!$A$12:$B$33,ROW(J18)-ROW(J$6),1)=0,"",INDEX(Backend_database_med_pivot!$A$12:$B$33,ROW(J18)-ROW(J$6),1)) ->  | K18: =IF(J18="","",VLOOKUP(J18,Backend_database_med_pivot!$A$12:$B$42,2,FALSE)) -> 
C19: Verdi - største underkat. | D19: =SUM(D7:D18) -> 94.42191781 | J19: Verdi - største underkat. | K19: =SUM(K7:K18) -> 11.70410959
C20: Andel de største av total: | E20: =D19/D22 -> 1 | J20: Andel de største av total: | L20: =K19/K22 -> 1
C22: Verdi alle som utløper: | D22: =Backend_database_med_pivot!K4 -> 94.42191781 | J22: Verdi alle som utløper: | K22: =Backend_database_med_pivot!B4 -> 11.70410959
C23: =CONCATENATE("Antall som utløper ",D5) -> Antall som utløper 2017 | D23: =Backend_database_med_pivot!J4 -> 1 | J23: =CONCATENATE("Antall som utløper ",K5) -> Antall som utløper 2014 | K23: =Backend_database_med_pivot!A4 -> 1
C24: =ROUND(D24,0) -> 94 | D24: =Backend_database_med_pivot!K4 -> 94.42191781 | J24: =ROUND(K24,0) -> 12 | K24: =Backend_database_med_pivot!B4 -> 11.70410959
C25: =CONCATENATE("Kontrakt utløper ",D25) -> Kontrakt utløper 2016 | D25: =$I$3+2 -> 2016 | J25: =CONCATENATE("Kontrakt utløper ",K25) -> Kontrakt utløper 2015 | K25: =$I$3+1 -> 2015
C26: Største underkategorier | D26: Verdi | J26: Største underkategorier | K26: Verdi
C27: =IF(INDEX(Backend_database_med_pivot!$G$12:$H$33,ROW(C27)-ROW(C$26),1)=0,"",INDEX(Backend_database_med_pivot!$G$12:$H$33,ROW(C27)-ROW(C$26),1)) -> Renhold | D27: =IF(C27="","",VLOOKUP(C27,Backend_database_med_pivot!$G$12:$H$42,2,FALSE)) -> 19.47945205 | E27: =IFERROR(D27/D$42,"") -> 1 | J27: =IF(INDEX(Backend_database_med_pivot!$D$12:$E$36,ROW(J27)-ROW(J$26),1)=0,"",INDEX(Backend_database_med_pivot!$D$12:$E$36,ROW(J27)-ROW(J$26),1)) -> Hotellarrangementer | K27: =IF(J27="","",VLOOKUP(J27,Backend_database_med_pivot!$D$12:$E$42,2,FALSE)) -> 76.78356164 | L27: =IFERROR(K27/K$42,"") -> 0.4316739572
C28: =IF(INDEX(Backend_database_med_pivot!$G$12:$H$33,ROW(C28)-ROW(C$26),1)=0,"",INDEX(Backend_database_med_pivot!$G$12:$H$33,ROW(C28)-ROW(C$26),1)) ->  | D28: =IF(C28="","",VLOOKUP(C28,Backend_database_med_pivot!$G$12:$H$42,2,FALSE)) ->  | E28: =IFERROR(D28/D$42,"") ->  | J28: =IF(INDEX(Backend_database_med_pivot!$D$12:$E$36,ROW(J28)-ROW(J$26),1)=0,"",INDEX(Backend_database_med_pivot!$D$12:$E$36,ROW(J28)-ROW(J$26),1)) -> Reise | K28: =IF(J28="","",VLOOKUP(J28,Backend_database_med_pivot!$D$12:$E$42,2,FALSE)) -> 32.23013699 | L28: =IFERROR(K28/K$42,"") -> 0.1811964759
C29: =IF(INDEX(Backend_database_med_pivot!$G$12:$H$33,ROW(C29)-ROW(C$26),1)=0,"",INDEX(Backend_database_med_pivot!$G$12:$H$33,ROW(C29)-ROW(C$26),1)) ->  | D29: =IF(C29="","",VLOOKUP(C29,Backend_database_med_pivot!$G$12:$H$42,2,FALSE)) ->  | J29: =IF(INDEX(Backend_database_med_pivot!$D$12:$E$36,ROW(J29)-ROW(J$26),1)=0,"",INDEX(Backend_database_med_pivot!$D$12:$E$36,ROW(J29)-ROW(J$26),1)) -> Kontormateriale | K29: =IF(J29="","",VLOOKUP(J29,Backend_database_med_pivot!$D$12:$E$42,2,FALSE)) -> 31.28219178 | L29: 0.1758671678
C30: =IF(INDEX(Backend_database_med_pivot!$G$12:$H$33,ROW(C30)-ROW(C$26),1)=0,"",INDEX(Backend_database_med_pivot!$G$12:$H$33,ROW(C30)-ROW(C$26),1)) ->  | D30: =IF(C30="","",VLOOKUP(C30,Backend_database_med_pivot!$G$12:$H$42,2,FALSE)) ->  | J30: =IF(INDEX(Backend_database_med_pivot!$D$12:$E$36,ROW(J30)-ROW(J$26),1)=0,"",INDEX(Backend_database_med_pivot!$D$12:$E$36,ROW(J30)-ROW(J$26),1)) -> Kontorinventar | K30: =IF(J30="","",VLOOKUP(J30,Backend_database_med_pivot!$D$12:$E$42,2,FALSE)) -> 12.32328767 | L30: 0.06928100548
C31: =IF(INDEX(Backend_database_med_pivot!$G$12:$H$33,ROW(C31)-ROW(C$26),1)=0,"",INDEX(Backend_database_med_pivot!$G$12:$H$33,ROW(C31)-ROW(C$26),1)) ->  | D31: =IF(C31="","",VLOOKUP(C31,Backend_database_med_pivot!$G$12:$H$42,2,FALSE)) ->  | J31: =IF(INDEX(Backend_database_med_pivot!$D$12:$E$36,ROW(J31)-ROW(J$26),1)=0,"",INDEX(Backend_database_med_pivot!$D$12:$E$36,ROW(J31)-ROW(J$26),1)) -> Kantine | K31: =IF(J31="","",VLOOKUP(J31,Backend_database_med_pivot!$D$12:$E$42,2,FALSE)) -> 11.98356164 | L31: 0.06737108003
C32: =IF(INDEX(Backend_database_med_pivot!$G$12:$H$33,ROW(C32)-ROW(C$26),1)=0,"",INDEX(Backend_database_med_pivot!$G$12:$H$33,ROW(C32)-ROW(C$26),1)) ->  | D32: =IF(C32="","",VLOOKUP(C32,Backend_database_med_pivot!$G$12:$H$42,2,FALSE)) ->  | J32: =IF(INDEX(Backend_database_med_pivot!$D$12:$E$36,ROW(J32)-ROW(J$26),1)=0,"",INDEX(Backend_database_med_pivot!$D$12:$E$36,ROW(J32)-ROW(J$26),1)) -> Hardware | K32: =IF(J32="","",VLOOKUP(J32,Backend_database_med_pivot!$D$12:$E$42,2,FALSE)) -> 9.479452055 | L32: 0.05329308114
C33: =IF(INDEX(Backend_database_med_pivot!$G$12:$H$33,ROW(C33)-ROW(C$26),1)=0,"",INDEX(Backend_database_med_pivot!$G$12:$H$33,ROW(C33)-ROW(C$26),1)) ->  | D33: =IF(C33="","",VLOOKUP(C33,Backend_database_med_pivot!$G$12:$H$42,2,FALSE)) ->  | J33: =IF(INDEX(Backend_database_med_pivot!$D$12:$E$36,ROW(J33)-ROW(J$26),1)=0,"",INDEX(Backend_database_med_pivot!$D$12:$E$36,ROW(J33)-ROW(J$26),1)) -> Trykksaker | K33: =IF(J33="","",VLOOKUP(J33,Backend_database_med_pivot!$D$12:$E$42,2,FALSE)) -> 3.791780822 | L33: 0.02131723246
C34: =IF(INDEX(Backend_database_med_pivot!$G$12:$H$33,ROW(C34)-ROW(C$26),1)=0,"",INDEX(Backend_database_med_pivot!$G$12:$H$33,ROW(C34)-ROW(C$26),1)) ->  | D34: =IF(C34="","",VLOOKUP(C34,Backend_database_med_pivot!$G$12:$H$42,2,FALSE)) ->  | J34: =IF(INDEX(Backend_database_med_pivot!$D$12:$E$36,ROW(J34)-ROW(J$26),1)=0,"",INDEX(Backend_database_med_pivot!$D$12:$E$36,ROW(J34)-ROW(J$26),1)) ->  | K34: =IF(J34="","",VLOOKUP(J34,Backend_database_med_pivot!$D$12:$E$42,2,FALSE)) -> 
C35: =IF(INDEX(Backend_database_med_pivot!$G$12:$H$33,ROW(C35)-ROW(C$26),1)=0,"",INDEX(Backend_database_med_pivot!$G$12:$H$33,ROW(C35)-ROW(C$26),1)) ->  | D35: =IF(C35="","",VLOOKUP(C35,Backend_database_med_pivot!$G$12:$H$42,2,FALSE)) ->  | J35: =IF(INDEX(Backend_database_med_pivot!$D$12:$E$36,ROW(J35)-ROW(J$26),1)=0,"",INDEX(Backend_database_med_pivot!$D$12:$E$36,ROW(J35)-ROW(J$26),1)) ->  | K35: =IF(J35="","",VLOOKUP(J35,Backend_database_med_pivot!$D$12:$E$42,2,FALSE)) -> 
C36: =IF(INDEX(Backend_database_med_pivot!$G$12:$H$33,ROW(C36)-ROW(C$26),1)=0,"",INDEX(Backend_database_med_pivot!$G$12:$H$33,ROW(C36)-ROW(C$26),1)) ->  | D36: =IF(C36="","",VLOOKUP(C36,Backend_database_med_pivot!$G$12:$H$42,2,FALSE)) ->  | J36: =IF(INDEX(Backend_database_med_pivot!$D$12:$E$36,ROW(J36)-ROW(J$26),1)=0,"",INDEX(Backend_database_med_pivot!$D$12:$E$36,ROW(J36)-ROW(J$26),1)) ->  | K36: =IF(J36="","",VLOOKUP(J36,Backend_database_med_pivot!$D$12:$E$42,2,FALSE)) -> 
C37: =IF(INDEX(Backend_database_med_pivot!$G$12:$H$33,ROW(C37)-ROW(C$26),1)=0,"",INDEX(Backend_database_med_pivot!$G$12:$H$33,ROW(C37)-ROW(C$26),1)) ->  | D37: =IF(C37="","",VLOOKUP(C37,Backend_database_med_pivot!$G$12:$H$42,2,FALSE)) ->  | J37: =IF(INDEX(Backend_database_med_pivot!$D$12:$E$36,ROW(J37)-ROW(J$26),1)=0,"",INDEX(Backend_database_med_pivot!$D$12:$E$36,ROW(J37)-ROW(J$26),1)) ->  | K37: =IF(J37="","",VLOOKUP(J37,Backend_database_med_pivot!$D$12:$E$42,2,FALSE)) -> 
C38: =IF(INDEX(Backend_database_med_pivot!$G$12:$H$33,ROW(C38)-ROW(C$26),1)=0,"",INDEX(Backend_database_med_pivot!$G$12:$H$33,ROW(C38)-ROW(C$26),1)) ->  | D38: =IF(C38="","",VLOOKUP(C38,Backend_database_med_pivot!$G$12:$H$42,2,FALSE)) ->  | J38: =IF(INDEX(Backend_database_med_pivot!$D$12:$E$36,ROW(J38)-ROW(J$26),1)=0,"",INDEX(Backend_database_med_pivot!$D$12:$E$36,ROW(J38)-ROW(J$26),1)) ->  | K38: =IF(J38="","",VLOOKUP(J38,Backend_database_med_pivot!$D$12:$E$42,2,FALSE)) -> 
C39: Verdi - største underkat. | D39: =SUM(D27:D38) -> 19.47945205 | J39: Verdi - største underkat. | K39: =SUM(K27:K38) -> 177.8739726
C40: Andel de største av total: | E40: =D39/D42 -> 1 | J40: Andel de største av total: | L40: =K39/K42 -> 1
C42: Verdi alle som utløper: | D42: =Backend_database_med_pivot!H4 -> 19.47945205 | J42: Verdi alle som utløper: | K42: =Backend_database_med_pivot!E4 -> 177.8739726
C43: =CONCATENATE("Antall som utløper ",D25) -> Antall som utløper 2016 | D43: =Backend_database_med_pivot!G4 -> 1 | J43: =CONCATENATE("Antall som utløper ",K25) -> Antall som utløper 2015 | K43: =Backend_database_med_pivot!D4 -> 7
C44: =ROUND(D44,0) -> 19 | D44: =Backend_database_med_pivot!H4 -> 19.47945205 | J44: =ROUND(K44,0) -> 178 | K44: =Backend_database_med_pivot!E4 -> 177.8739726

Sheet Backend_database_med_pivot (hidden)
A1: Dette arket er skjult i excel-arbeidsboken | O1: Årslutt_kontraktsregister
M2: MIN | N2: =MIN(Kontraktsregister!T12:T1048576) -> 1900 | O2: 2013
A3: =Kontraktsyklus!K5 -> 2014 | D3: =Kontraktsyklus!K25 -> 2015 | G3: =Kontraktsyklus!D25 -> 2016 | J3: =Kontraktsyklus!D5 -> 2017 | M3: MAX | N3: =MAX(Kontraktsregister!T12:T1048576) -> 2019 | O3: =IF(O2<$N$3-3,O2+1,"") -> 2014
A4: =COUNTA(A12:A200) -> 1 | B4: =SUM(B12:B200) -> 11.70410959 | D4: =COUNTA(D12:D200) -> 7 | E4: =SUM(E12:E200) -> 177.8739726 | G4: =COUNTA(G12:G200) -> 1 | H4: =SUM(H12:H200) -> 19.47945205 | J4: =COUNTA(J12:J200) -> 1 | K4: =SUM(K12:K200) -> 94.42191781 | O4: =IF(O3<$N$3-3,O3+1,"") -> 2015
A5: =COUNTIF(Kontraktsregister!$T:$T,C_år1) -> 1 | D5: =COUNTIF(Kontraktsregister!$T:$T,Andre_år) -> 8 | G5: =COUNTIF(Kontraktsregister!$T:$T,C_år3) -> 1 | J5: =COUNTIF(Kontraktsregister!$T:$T,Fjerde_år) -> 1 | K5: =COUNTIF(A5:J5,0) -> 0 | O5: 2016
A7: År - slutt | B7: 2014 | D7: År - slutt | E7: 2015 | G7: År - slutt | H7: 2016 | J7: År - slutt | K7: 2017
A8: Status | B8: Aktiv | D8: Status | E8: Aktiv | G8: Status | H8: Aktiv | J8: Status | K8: Aktiv
A9: Liste med leverandører | D9: Liste med leverandører | G9: Liste med leverandører | J9: Liste med leverandører
A10: Sum of Totalverdi (estimert, hele kontrakssyklus) | D10: Sum of Totalverdi (estimert, hele kontrakssyklus) | G10: Sum of Totalverdi (estimert, hele kontrakssyklus) | J10: Sum of Totalverdi (estimert, hele kontrakssyklus)
A11: Underkategori | B11: Totalt | D11: Underkategori | E11: Totalt | G11: Underkategori | H11: Totalt | J11: Underkategori | K11: Totalt
A12: Ledelsesrådgivning | B12: 11.70410959 | D12: Hotellarrangementer | E12: 76.78356164 | G12: Renhold | H12: 19.47945205 | J12: Software inkl. vedlikehold | K12: 94.42191781
D13: Reise | E13: 32.23013699
D14: Kontormateriale | E14: 31.28219178
D15: Kontorinventar | E15: 12.32328767
D16: Kantine | E16: 11.98356164
D17: Hardware | E17: 9.479452055
D18: Trykksaker | E18: 3.791780822
